[Event "Teplice Open 2022"]
[Site "Teplice"]
[Date "2022.06.20"]
[Round "3.1"]
[White "Santos Latasa, Jaime"]
[Black "Seo, Jung Min"]
[Result "1/2-1/2"]
[ECO "E05"]
[WhiteElo "2672"]
[BlackElo "2483"]
[Annotator "TA"]
[PlyCount "171"]
[EventDate "2022.06.18"]
[EventType "swiss"]
[EventCountry "CZE"]
[SourceTitle "playchess.com"]
[Source "ChessBase"]
[SourceQuality "1"]
[TimeControl "40/5400+30:1800+30"]

{[%evp 20,171,0,0,0,0,0,0,0,0,0,0,14,14,5,0,12,10,22,2,15,21,20,0,0,0,0,0,63,75,81,69,61,12,14,0,123,146,167,175,168,155,174,214,292,281,317,316,377,21,31,25,111,68,72,72,150,140,145,116,125,18,16,22,16,19,26,21,22,17,30,20,31,34,40,15,15,15,15,15,15,8,15,15,15,13,15,12,12,12,12,12,12,12,12,12,19,19,19,19,19,12,19,19,19,19,30,30,30,30,30,30,30,30,30,30,30,30,30,30,30,30,30,30,30,30,30,30,30,30,30,30,30,30,30,30,34,34,34,34,34,34,34,34,34,30,30,0,34,34,34,0,8,8]} 1. d4 {[%emt 0:00:03]} Nf6 {[%emt 0:00:16]} 2. c4 {[%emt 0:00:08]} e6 {[%emt 0:00:03]} 3. Nf3 {[%emt 0:00:08]} d5 {[%emt 0:00:17]} 4. g3 {[%emt 0:00:06]} Be7 {[%emt 0:01:01]} 5. Bg2 {[%emt 0:00:06]} O-O {[%emt 0:00:07]} 6. O-O {[%emt 0:00:04]} dxc4 {[%emt 0:01:46]} 7. Qc2 {[%emt 0:00:28]} a6 {[%emt 0:00:23]} 8. Qxc4 {[%emt 0:00:21]} b5 {[%emt 0:00:05]} 9. Qc2 {[%emt 0:00:05]} Bb7 {[%emt 0:00:07]} 10. Bd2 {[%emt 0:00:03]} Be4 {[%emt 0:01:28]} 11. Qc1 {[%emt 0:00:05]} c6 {[%emt 0:00:46]} 12. a4 {[%emt 0:00:05]} Nbd7 {[%emt 0:07:28]} 13. Nc3 {[%emt 0:00:24]} Bg6 {[%emt 0:00:30]} 14. Nh4 {[%emt 0:00:22]} Bh5 {[%emt 0:05:00]} 15. h3 {[%emt 0:00:28]} Rc8 {[%emt 0:02:32]} 16. axb5 {[%emt 0:00:24]} axb5 {[%emt 0:01:32]} 17. g4 {[%emt 0:01:18]} Nd5 {[%emt 0:12:00]} 18. gxh5 {[%emt 0:01:57]} Bxh4 {[%emt 0:00:03]} 19. h6 {[%emt 0:02:48] With the idea hxg7.} g6 {[%emt 0:01:13]} 20. Ne4 {[%emt 0:00:07]} Be7 {[%emt 0:01:38]} 21. Ra6 {[%emt 0:09:50]} c5 {[%emt 0:05:17]} 22. Ba5 {[%emt 0:00:41]} Qe8 {[%emt 0:01:14]} 23. Qd2 {[%emt 0:08:38]} c4 {[%emt 0:05:45]} (23... Nb8 $1 $11 24. Nd6 Qd7 25. Nxc8 Rxc8) 24. Nd6 $1 $14 {[%emt 0:09:31]} (24. Ra7 $6 Ra8 25. Rb7 Rb8 $11) 24... Bxd6 {[%emt 0:00:15]} 25. Bxd5 {[%emt 0:00:20]} Qe7 {[%emt 0:19:24]} 26. Bb7 {[%emt 0:00:41]} (26. Bg2 $14) 26... Rb8 $11 {[%emt 0:00:30]} 27. Bc6 {[%emt 0:00:40]} Nf6 {[%emt 0:01:24]} (27... Rfc8 $11) 28. e4 $16 {[%emt 0:07:09]} e5 {[%emt 0:01:28] [#] Hoping for ...Nh5.} 29. f4 $1 {[%emt 0:00:12]} exd4 {[%emt 0:13:14]} 30. e5 {[%emt 0:00:32]} (30. Qxd4 $2 Bc5 31. Qxc5 Qxc5+ $19) 30... Bc5 {[%emt 0:00:17][%cal Oe7e6] Threatens to win with ...Qe6!} 31. exf6 {[%emt 0:00:24]} Qxf6 {[%emt 0:00:08]} 32. Kh2 {[%emt 0:02:09]} Qh4 {[%emt 0:01:32]} 33. Qg2 {[%emt 0:02:32]} Qxh6 {[%emt 0:00:14]} 34. Qg5 $2 {[%emt 0:00:10]} ({White should play} 34. Qd5 $18 Be7 35. Qe5) 34... Qxg5 $11 {[%emt 0:00:18]} 35. fxg5 {[%emt 0:00:06]} d3 {[%emt 0:13:09]} (35... b4 $1 $11) 36. Bc3 {[%emt 0:06:19]} b4 $1 {[%emt 0:02:09]} 37. Bf6 {[%emt 0:00:18]} Rbc8 {[%emt 0:02:52]} (37... Be3 $142) 38. Kg2 $16 {[%emt 0:02:07]} Rc7 {[%emt 0:00:59]} 39. Bb5 {[%emt 0:07:35]} Be3 {[%emt 0:00:43]} 40. Rc6 {[%emt 0:01:04]} ({Much weaker is} 40. b3 $6 c3 41. Kf3 (41. Bxd3 c2 $15) 41... Bxg5 42. Bxg5 Rc5 43. Bxd3 Rxg5 $11) (40. Kf3 $16 Bd2 41. Rfa1 (41. b3 cxb3 42. Bxd3 Bc3 $14)) 40... Rxc6 $11 {[%emt 0:00:18]} 41. Bxc6 {[%emt 0:30:06] Kf3 is the strong threat.} c3 $1 {[%emt 0:11:38]} 42. bxc3 {[%emt 0:00:00]} bxc3 {[%emt 0:00:06]} 43. Bxc3 {[%emt 0:00:00] And now Bf6 would win.} Rc8 {[%emt 0:00:21] [#]} 44. Ra1 $1 {[%emt 0:00:00][%cal Oh3h4] Black must now prevent h4!} Bxg5 {[%emt 0:00:05]} 45. Kf3 {[%emt 0:00:00]} d2 {[%emt 0:00:45] [#]} 46. Ke2 $1 {[%emt 0:00:00]} Kf8 {[%emt 0:01:14]} (46... f6 47. Ra8) 47. Ra8 {[%emt 0:00:00]} Rxa8 {[%emt 0:00:07]} 48. Bxa8 {[%emt 0:00:00]} Ke7 {[%emt 0:00:14]} 49. Bd5 {[%emt 0:00:00]} Bf4 {[%emt 0:00:21]} 50. Bc4 {[%emt 0:00:00]} Bg5 {[%emt 0:00:05]} 51. Bb3 {[%emt 0:00:00]} h5 {[%emt 0:00:42]} 52. Be5 {[%emt 0:00:00]} Bh6 {[%emt 0:00:27]} 53. h4 {[%emt 0:00:00]} g5 {[%emt 0:00:34]} 54. Kxd2 {[%emt 0:00:00]} (54. Bg3 {with more complications.} Kf6 55. Kd1 gxh4 56. Bxh4+ Bg5 57. Bxg5+ Kxg5 58. Bxf7 h4 59. Kxd2 h3 60. Bd5) 54... gxh4+ {[%emt 0:00:03]} 55. Ke2 {[%emt 0:00:00]} Bg5 {[%emt 0:00:11]} 56. Kf3 {[%emt 0:00:00]} Bf6 {[%emt 0:00:13]} 57. Bf4 {[%emt 0:00:00]} Kf8 {[%emt 0:00:08]} 58. Ke4 {[%emt 0:00:00]} Kg7 {[%emt 0:00:09]} 59. Kf5 {[%emt 0:00:00]} Bc3 {[%emt 0:00:05]} 60. Bd1 {[%emt 0:00:00]} Bb2 {[%emt 0:00:09]} 61. Bxh5 {[%emt 0:00:00]} Ba1 {[%emt 0:00:39]} 62. Bg4 {[%emt 0:00:00]} Bb2 {[%emt 0:00:05]} 63. Bg5 {[%emt 0:00:00]} Ba1 {[%emt 0:00:05]} 64. Bxh4 {[%emt 0:00:00]} Bc3 {[%emt 0:00:03]} 65. Bh5 {[%emt 0:00:00]} Bb2 {[%emt 0:00:05]} 66. Bg5 {[%emt 0:00:00]} Bc3 {[%emt 0:00:05]} 67. Ke4 {[%emt 0:00:00]} Bb2 {[%emt 0:00:10]} 68. Kd5 {[%emt 0:00:00]} Bf6 {[%emt 0:00:12]} 69. Bf4 {[%emt 0:00:00]} Bc3 {[%emt 0:00:03]} 70. Kd6 {[%emt 0:00:00]} Ba1 {[%emt 0:00:21]} 71. Ke7 {[%emt 0:00:00]} f5 {[%emt 0:00:20]} 72. Ke6 {[%emt 0:00:00]} Bb2 {[%emt 0:00:03]} 73. Kxf5 {[%emt 0:00:00]} Bc3 {[%emt 0:00:04]} 74. Ke6 {[%emt 0:00:00]} Bb2 {[%emt 0:00:04]} 75. Bf7 {[%emt 0:00:00]} Ba1 {[%emt 0:00:08]} 76. Ke7 {[%emt 0:00:00]} Kh8 {[%emt 0:00:18]} 77. Bd5 {[%emt 0:00:00]} Bb2 {[%emt 0:00:07]} 78. Kf7 {[%emt 0:00:00]} Bc3 {[%emt 0:00:05]} 79. Be4 {[%emt 0:00:00]} Bb2 {[%emt 0:00:07]} 80. Bg5 {[%emt 0:00:00]} Bc3 {[%emt 0:00:26]} 81. Bd5 {[%emt 0:00:00]} Ba1 {[%emt 0:00:05]} 82. Kf8 {[%emt 0:00:00]} Bg7+ {[%emt 0:00:09]} 83. Kf7 {[%emt 0:00:00]} Bc3 {[%emt 0:00:04]} 84. Kg6 {[%emt 0:00:00]} Bb2 {[%emt 0:00:05]} 85. Bf6+ {[%emt 0:00:00]} Bxf6 {[%emt 0:00:04]} 86. Kxf6 {[%emt 0:00:00]} 1/2-1/2

[Event "Teplice Open 2022"]
[Site "Teplice"]
[Date "2022.06.20"]
[Round "3.2"]
[White "Raja Harshit"]
[Black "Narayanan.S.L"]
[Result "1/2-1/2"]
[ECO "C89"]
[WhiteElo "2479"]
[BlackElo "2662"]
[Annotator "TA"]
[PlyCount "67"]
[EventDate "2022.06.18"]
[EventType "swiss"]
[EventCountry "CZE"]
[SourceTitle "playchess.com"]
[Source "ChessBase"]
[SourceQuality "1"]
[TimeControl "40/5400+30:1800+30"]

{[%evp 22,67,58,57,48,60,42,25,31,30,30,25,43,0,18,12,12,0,0,0,0,0,0,-14,-19,-29,-31,-35,-36,-36,-36,-33,-33,-34,-33,-47,-40,-40,-14,-30,-11,-8,0,0,12,12,18,-4]} 1. e4 {[%emt 0:02:12]} e5 {[%emt 0:00:08]} 2. Nf3 {[%emt 0:00:23]} Nc6 {[%emt 0:00:06]} 3. Bb5 {[%emt 0:00:09][%cal Bf1b5,Bb5a4,Ba4b3][%mdl 32]} a6 {[%emt 0:00:06]} 4. Ba4 {[%emt 0:00:08]} Nf6 {[%emt 0:00:06][%cal Bg8f6,Bf6d5,Bd5f4][%mdl 32]} 5. O-O {[%emt 0:00:11]} Be7 {[%emt 0:00:06]} 6. Re1 {[%emt 0:00:45]} b5 {[%emt 0:00:06]} 7. Bb3 {[%emt 0:00:05]} O-O {[%emt 0:00:16]} 8. c3 {[%emt 0:00:08]} d5 {[%emt 0:03:23]} 9. exd5 {[%emt 0:00:07]} Nxd5 {[%emt 0:00:04]} 10. Nxe5 {[%emt 0:00:07]} Nxe5 {[%emt 0:00:05]} 11. Rxe5 {[%emt 0:00:10]} Bb7 {[%emt 0:00:05]} 12. d4 {[%emt 0:09:34]} Bf6 {[%emt 0:00:07] C89: Closed Ruy Lopez: Marshall Attack.} 13. Re1 {[%emt 0:04:20]} Re8 {[%emt 0:00:06]} 14. Nd2 {[%emt 0:08:09]} Nf4 {[%emt 0:00:49] White has an edge.} 15. Nf3 {[%emt 0:09:08]} Bxf3 {[%emt 0:00:23]} 16. gxf3 {[%emt 0:05:19]} Bg5 {[%emt 0:03:40][%cal Bf6g5,Bg5f4,Bf4h2,Bh2d6][%mdl 32] [#] And now ...Rxe1+ would win.} 17. Rxe8+ {[%emt 0:05:47]} Qxe8 {[%emt 0:00:06]} 18. Bxf4 {[%emt 0:03:00]} Bxf4 {[%emt 0:00:06]} 19. Qe1 {[%emt 0:01:28] Inhibits Qe7.} Qd8 {[%emt 0:04:06]} 20. Qe4 {[%emt 0:00:14]} Qg5+ {[%emt 0:00:21] [#]} 21. Kf1 $146 {[%emt 0:05:06]} ({Predecessor:} 21. Kh1 Rf8 22. Rg1 Qh4 23. Rg2 Qf6 24. Rg4 Bc1 25. Bc2 g6 26. b3 h5 27. Rg3 {0-1 (52) Obrien,G (1658)-Sabbatini,G (1986) LSS email 2020}) 21... Rf8 {[%emt 0:00:56]} 22. Re1 {[%emt 0:00:11]} Bxh2 {[%emt 0:10:20]} 23. Qg4 {[%emt 0:04:14]} Qf6 {[%emt 0:04:27]} ({But not} 23... Qd2 {[#]} 24. Bxf7+ $1 Kh8 25. Bd5 $14) 24. Kg2 {[%emt 0:01:46]} Bd6 {[%emt 0:00:15]} 25. Rh1 {[%emt 0:01:04]} g6 {[%emt 0:16:13]} 26. Qh4 {[%emt 0:00:51]} Qxh4 {[%emt 0:00:16]} 27. Rxh4 $15 {[%emt 0:00:06][%cal Bh1h4,Bh4e4,Be4e1][%mdl 4128] Endgame KRB-KRB} Kg7 {[%emt 0:00:06]} 28. Re4 {[%emt 0:01:17]} Rc8 {[%emt 0:08:56]} 29. a4 {[%emt 0:02:06]} g5 {[%emt 0:00:34]} 30. Re1 {[%emt 0:02:13]} Rb8 {[%emt 0:04:35] White must now prevent ...bxa4.} 31. a5 {[%emt 0:01:12] The position is equal.} h5 {[%emt 0:03:54]} 32. Bd5 {[%emt 0:02:01]} c5 {[%emt 0:00:40]} 33. dxc5 {[%emt 0:03:34]} Bxc5 {[%emt 0:00:05]} 34. Bc6 {[%emt 0:03:04] Weighted Error Value: White=0.07 (flawless) /Black=0.05 (flawless)} 1/2-1/2

[Event "Teplice Open 2022"]
[Site "Teplice"]
[Date "2022.06.20"]
[Round "3.3"]
[White "Berkes, Ferenc"]
[Black "Wachinger, Nikolas"]
[Result "1/2-1/2"]
[ECO "B44"]
[WhiteElo "2654"]
[BlackElo "2401"]
[Annotator "TA"]
[PlyCount "62"]
[EventDate "2022.06.18"]
[EventType "swiss"]
[EventCountry "CZE"]
[SourceTitle "playchess.com"]
[Source "ChessBase"]
[SourceQuality "1"]
[TimeControl "40/5400+30:1800+30"]

{[%evp 10,62,0,0,14,6,6,8,23,22,22,7,15,12,14,-8,-10,-12,-7,-14,-4,-13,-13,-16,-13,-25,0,-20,-19,-14,-6,-27,-25,-22,-10,-16,0,-4,-4,-8,0,-41,0,0,0,0,0,0,0,0,0,0,0,0,0]} 1. c4 {[%emt 0:00:17]} e6 {[%emt 0:01:24]} 2. Nc3 {[%emt 0:01:53]} c5 {[%emt 0:00:15]} 3. e4 {[%emt 0:04:05]} Nc6 {[%emt 0:01:05]} 4. Nf3 {[%emt 0:00:06]} Nf6 {[%emt 0:00:51]} 5. d4 {[%emt 0:00:10]} cxd4 {[%emt 0:00:12]} 6. Nxd4 {[%emt 0:00:06]} Bc5 {[%emt 0:00:15] B44: Sicilian: Taimanov: 5 Nb5.} 7. Nb3 {[%emt 0:15:14]} Bb4 {[%emt 0:00:32]} 8. Bd3 {[%emt 0:00:07]} d5 {[%emt 0:00:23]} 9. exd5 {[%emt 0:04:02]} exd5 {[%emt 0:00:10]} 10. O-O {[%emt 0:07:47]} dxc4 {[%emt 0:00:36]} 11. Bxc4 {[%emt 0:00:38] [#]} O-O $146 {[%emt 0:04:11][%cal Bh8f8,Bf8d8,Bd8d5][%mdl 32]} ({Predecessor:} 11... Qxd1 12. Rxd1 O-O 13. Nd5 Nxd5 14. Bxd5 Bg4 15. f3 Bf5 16. Bd2 Be7 17. Rac1 Bf6 {1-0 (57) Rocandio Sanchez,R-Gonzalez Rodriguez,J (1940) Las Palmas 2011}) 12. Qxd8 {[%emt 0:07:43]} Rxd8 {[%emt 0:05:12]} 13. Bg5 {[%emt 0:00:07]} Be6 {[%emt 0:05:12]} 14. Bxe6 {[%emt 0:01:28]} fxe6 {[%emt 0:03:14]} 15. Rae1 {[%emt 0:04:07]} Kf7 {[%emt 0:07:08]} 16. Re2 {[%emt 0:04:01]} Bxc3 {[%emt 0:11:45]} 17. bxc3 {[%emt 0:00:06]} Rd5 {[%emt 0:00:08]} 18. f4 {[%emt 0:06:38]} b6 {[%emt 0:11:21]} 19. Rfe1 {[%emt 0:02:45]} Re8 {[%emt 0:00:26]} 20. Bxf6 {[%emt 0:13:05]} gxf6 {[%emt 0:04:59]} 21. Re4 {[%emt 0:02:42]} Re7 {[%emt 0:11:03]} 22. Rc4 {[%emt 0:08:00]} Na5 {[%emt 0:03:07]} 23. Nxa5 {[%emt 0:00:14]} Rxa5 $11 {[%emt 0:00:10][%mdl 4096] Endgame KRR-KRR} 24. a4 {[%emt 0:00:04]} Rd7 {[%emt 0:03:54]} 25. Re2 {[%emt 0:01:03]} Rc5 {[%emt 0:02:38]} 26. Rxc5 {[%emt 0:01:23] The position is equal.} bxc5 {[%emt 0:00:06] KR-KR} 27. Kf2 {[%emt 0:05:04]} Rd3 {[%emt 0:05:41]} 28. Re3 {[%emt 0:00:12]} Rd2+ {[%emt 0:00:11]} 29. Re2 {[%emt 0:00:11]} Rd3 {[%emt 0:00:34]} 30. Re3 {[%emt 0:00:08]} Rd2+ {[%emt 0:00:08]} 31. Re2 {[%emt 0:00:16]} Rd3 {[%emt 0:00:07] An even fight not without its subleties.  Weighted Error Value: White=0.06 (flawless) /Black=0.06 (flawless)} 1/2-1/2

[Event "Teplice Open 2022"]
[Site "Teplice"]
[Date "2022.06.20"]
[Round "3.4"]
[White "Das, Arghyadip"]
[Black "Demchenko, Anton"]
[Result "0-1"]
[ECO "C47"]
[WhiteElo "2472"]
[BlackElo "2654"]
[Annotator "TA"]
[PlyCount "62"]
[EventDate "2022.06.18"]
[EventType "swiss"]
[EventCountry "CZE"]
[SourceTitle "playchess.com"]
[Source "ChessBase"]
[SourceQuality "1"]
[TimeControl "40/5400+30:1800+30"]

{[%evp 11,62,33,33,31,37,28,30,29,26,29,45,51,56,51,49,49,56,50,48,22,23,37,25,0,0,-22,-15,-137,-136,-256,-252,-249,-256,-344,-348,-336,-345,-335,-326,-487,-514,-508,-496,-489,-476,-745,-749,-747,-742,-739,-704,-673,-612]} 1. e4 {[%emt 0:00:06]} e5 {[%emt 0:00:13]} 2. Nf3 {[%emt 0:00:05]} Nc6 {[%emt 0:00:05]} 3. Nc3 {[%emt 0:00:14]} Nf6 {[%emt 0:01:14]} 4. d4 {[%emt 0:00:08]} Bb4 {[%emt 0:03:16]} 5. Nxe5 {[%emt 0:02:54]} Bxc3+ {[%emt 0:00:26]} 6. bxc3 {[%emt 0:00:03]} Qe7 $1 {[%emt 0:00:06]} 7. f3 {[%emt 0:01:26] Black must now prevent Nxc6. C47: Scotch Four Knights and Four Knights with 4 g3.} Nxe5 {[%emt 0:00:07]} 8. dxe5 {[%emt 0:00:03]} Qxe5 {[%emt 0:00:04]} 9. Qd4 {[%emt 0:00:15] White has an edge.} d6 {[%emt 0:00:06]} 10. a4 {[%emt 0:01:45]} a5 {[%emt 0:03:02]} 11. Bb5+ {[%emt 0:02:39]} Bd7 {[%emt 0:01:47]} 12. Rb1 {[%emt 0:01:42]} b6 {[%emt 0:00:31] [#]} 13. Kf2 $146 {[%emt 0:00:57]} ({Predecessor:} 13. O-O O-O 14. Rd1 Rad8 15. Qxe5 dxe5 16. Ba3 Rfe8 17. c4 h6 18. h4 c6 19. Ba6 {1-0 (59) Paravyan,D (2617)-Sjugirov,S (2680) Chess.com INT 2022}) 13... Rd8 {[%emt 0:07:30]} 14. Qxe5+ {[%emt 0:20:26]} dxe5 {[%emt 0:00:02]} 15. Ke3 {[%emt 0:02:34]} Bxb5 {[%emt 0:15:32]} 16. Rxb5 {[%emt 0:00:19]} Nd7 {[%emt 0:00:06]} 17. Ba3 {[%emt 0:02:05]} h5 {[%emt 0:00:18]} 18. Rd5 {[%emt 0:12:00]} Rh6 {[%emt 0:02:05] With the idea ...Rc6.} 19. c4 {[%emt 0:03:16]} (19. Rg1 $11 {keeps the balance.}) 19... Rc6 $17 {[%emt 0:02:09]} 20. Kd3 {[%emt 0:07:33]} (20. c5 $17 {is a better defense.}) 20... Rg6 $19 {[%emt 0:02:32] [#] Strongly threatening ...c6.} 21. Kc3 {[%emt 0:05:28]} Rxg2 {[%emt 0:02:27]} 22. c5 {[%emt 0:03:45]} c6 {[%emt 0:18:28][%cal Bc7c6,Bc6b5,Bb5b4][%mdl 32]} ({Don't go for} 22... bxc5 $2 23. Rhd1 $19) (22... Nxc5 $2 23. Rxe5+ Ne6 24. f4 $19) 23. Rd6 {[%emt 0:19:52]} b5 {[%emt 0:00:31]} ({Inferior is} 23... bxc5 24. Rxc6 Rf2 25. Bxc5 Rxf3+ 26. Kc4 $17) ({Not} 23... Nxc5 24. Bxc5 bxc5 25. Rxc6 $17) 24. axb5 {[%emt 0:00:21]} cxb5 {[%emt 0:00:05] [#] And now ...b4+ would win.} 25. Rhd1 {[%emt 0:05:51]} (25. Bc1 {only move.} Rc8 26. Rd2 Rxc5+ 27. Kb3 a4+ 28. Kb2 Rxd2 29. Bxd2) 25... b4+ {[%emt 0:00:20] Black is clearly winning.} 26. Kb2 {[%emt 0:00:24][%cal Oa3b4]} bxa3+ {[%emt 0:01:40]} 27. Kxa3 {[%emt 0:00:03]} Rg6 {[%emt 0:00:31]} 28. c4 {[%emt 0:00:16]} (28. Rxg6 $142 fxg6 29. Rd6) 28... Rxd6 {[%emt 0:00:27]} 29. cxd6 {[%emt 0:00:03]} Rc8 {[%emt 0:00:20]} 30. Kb3 {[%emt 0:00:57]} Nc5+ {[%emt 0:00:22]} 31. Kc3 {[%emt 0:00:17]} Kd7 {[%emt 0:00:07] Weighted Error Value: White=0.41/Black=0.01 (flawless)} 0-1

[Event "Teplice Open 2022"]
[Site "Teplice"]
[Date "2022.06.20"]
[Round "3.5"]
[White "Holm, Kristian Stuvik"]
[Black "Fridman, Daniel"]
[Result "0-1"]
[ECO "C42"]
[WhiteElo "2458"]
[BlackElo "2605"]
[Annotator "TA"]
[PlyCount "106"]
[EventDate "2022.06.18"]
[EventType "swiss"]
[EventCountry "CZE"]
[SourceTitle "playchess.com"]
[Source "ChessBase"]
[SourceQuality "1"]
[TimeControl "40/5400+30:1800+30"]

{[%evp 15,106,41,43,21,20,5,13,16,16,15,15,15,13,25,29,13,20,22,24,20,29,29,29,31,30,30,31,24,31,24,37,31,61,24,27,11,11,7,7,3,8,0,0,0,10,0,0,0,8,0,0,0,10,8,16,9,9,9,10,8,8,0,25,0,5,-12,-20,-131,-117,-242,-177,-227,-220,-204,-203,-488,-272,-275,-262,-500,-499,-494,-496,-479,-490,-647,-629,-591,-648,-642,-640,-1100,-1083]} 1. e4 {[%emt 0:03:01]} e5 {[%emt 0:03:36]} 2. Nf3 {[%emt 0:00:19]} Nf6 {[%emt 0:00:09][%cal Bg8f6,Bf6e4,Be4d6][%mdl 32]} 3. Nxe5 {[%emt 0:00:44]} d6 {[%emt 0:00:21]} 4. Nf3 {[%emt 0:00:10]} Nxe4 {[%emt 0:00:05]} 5. d4 {[%emt 0:00:23]} d5 {[%emt 0:00:20]} 6. Bd3 {[%emt 0:00:25]} Bf5 {[%emt 0:02:57]} 7. O-O {[%emt 0:02:20]} Be7 {[%emt 0:00:10]} 8. Re1 {[%emt 0:01:35]} O-O {[%emt 0:04:21]} 9. Nbd2 {[%emt 0:00:28][%cal Rd2e4,Bb1d2,Bd2f1,Bf1e3,Be3g4,Bg4e5][%mdl 32] is recently more successful than 9.c4. C42: Petroff Defence: 3 Nxe5 and unusual White 3rd moves.} Nd6 $1 {[%emt 0:00:57]} 10. Nf1 {[%emt 0:00:32]} Bxd3 {[%emt 0:02:17]} 11. Qxd3 {[%emt 0:00:20] The position is equal.} c6 {[%emt 0:00:02]} 12. Bf4 {[%emt 0:02:16]} Na6 {[%emt 0:00:07][%cal Bb8a6,Ba6c7,Bc7e6][%mdl 32]} 13. Re2 {[%emt 0:03:40]} Nc7 {[%emt 0:01:57]} 14. Ne3 {[%emt 0:02:03]} Ne6 {[%emt 0:04:08]} 15. Bxd6 {[%emt 0:00:13]} Bxd6 {[%emt 0:00:21]} 16. g3 {[%emt 0:00:16] [#] Inhibits Nf4.} Re8 $5 $146 {[%emt 0:11:59][%mdl 8] New and interesting.} ({Predecessor:} 16... Qd7 17. Rae1 Rae8 18. b3 Nc7 19. c4 Bb4 20. Ra1 f6 21. a3 Be7 {½-½ (31) Anand,V (2767)-Yu,Y (2738) Stavanger 2019}) 17. Rae1 {[%emt 0:03:58]} Bf8 {[%emt 0:05:12]} 18. h4 {[%emt 0:03:22]} Qf6 {[%emt 0:08:18]} 19. Ng4 {[%emt 0:07:48]} Qg6 {[%emt 0:02:03]} 20. Qxg6 {[%emt 0:03:48]} hxg6 {[%emt 0:00:12]} 21. Nge5 {[%emt 0:05:31]} Nc7 {[%emt 0:00:16]} 22. c3 {[%emt 0:04:39]} Re7 {[%emt 0:01:33]} 23. Kf1 {[%emt 0:04:32]} Ne8 {[%emt 0:03:23]} 24. Nd3 {[%emt 0:08:40] Pair of Knights!} Rxe2 {[%emt 0:00:08]} 25. Rxe2 {[%emt 0:00:06]} f6 {[%emt 0:00:46]} 26. Nd2 {[%emt 0:04:02]} Kf7 {[%emt 0:01:06]} 27. Kg2 {[%emt 0:01:15]} Nc7 {[%emt 0:02:44]} 28. Kf3 {[%emt 0:06:25]} Bd6 {[%emt 0:04:31]} 29. Nf1 {[%emt 0:04:19]} a5 {[%emt 0:01:34]} 30. a4 {[%emt 0:01:50]} b5 {[%emt 0:03:10]} 31. axb5 {[%emt 0:10:37]} cxb5 {[%emt 0:00:35][%cal Bc6b5,Bb5b4,Bb4b3][%mdl 32]} 32. Rc2 {[%emt 0:03:15]} b4 {[%emt 0:02:07]} 33. Ne3 {[%emt 0:10:21]} b3 {[%emt 0:01:29]} 34. Rc1 {[%emt 0:00:01]} a4 {[%emt 0:00:11]} 35. Ra1 {[%emt 0:02:08]} Ke6 {[%emt 0:02:46]} 36. c4 {[%emt 0:00:51]} dxc4 {[%emt 0:10:36]} 37. Nxc4 {[%emt 0:00:02]} Nb5 {[%emt 0:00:17]} 38. d5+ {[%emt 0:01:23]} Ke7 {[%emt 0:00:28]} 39. Re1+ {[%emt 0:01:41]} Kd8 {[%emt 0:02:04]} 40. Nxd6 {[%emt 0:00:35]} Nxd6 $11 {[%emt 0:00:08][%mdl 4096] Endgame KRN-KRN} 41. Ke3 {[%emt 0:03:31]} (41. Ra1 $1 $11) 41... Rc8 $1 $17 {[%emt 0:03:21] Black is more active.} 42. Nb4 {[%emt 0:07:44] Loses the game.} (42. Ra1 $17) 42... Rc4 {[%emt 0:01:06]} 43. Nc6+ {[%emt 0:00:10]} (43. Nd3 $142) 43... Kc7 $19 {[%emt 0:00:52] Threatens to win with ...Re4+.} 44. Nd4 {[%emt 0:04:16] [#]} Kb6 $1 {[%emt 0:00:56]} 45. Rd1 $2 {[%emt 0:04:08]} (45. Kd3 Kc5 46. Ne2) 45... Kc5 {[%emt 0:01:05]} (45... Rc5 $142 46. Ke2 (46. Ne6 $2 Rc2 $19) 46... Rxd5) 46. Ne6+ {[%emt 0:00:29]} Kb4 {[%emt 0:00:08]} 47. Nd4 {[%emt 0:03:05] [#] Inhibits Rc2.} (47. Nf4) 47... Rc5 $1 {[%emt 0:12:52] Black is clearly winning.} 48. Nc6+ {[%emt 0:04:18]} Kb5 {[%emt 0:00:07] And now ...Nc4+ would win.} 49. Nd4+ {[%emt 0:00:32]} Kb6 {[%emt 0:00:11]} 50. Ne6 {[%emt 0:04:08]} Rc2 {[%emt 0:00:36] White must now prevent ...Nc4+.} 51. Ra1 {[%emt 0:00:14]} Nc4+ {[%emt 0:01:42]} 52. Kd4 {[%emt 0:00:07]} a3 {[%emt 0:02:03][%cal Ba4a3,Ba3b2][%mdl 32]} 53. d6 {[%emt 0:02:36] d7 is the strong threat.} axb2 {[%emt 0:00:31] Weighted Error Value: White=0.39/Black=0.08 (flawless)} 0-1